[Event "Titled Tuesday Blitz May 2 Early 2023"]
[White "Torres Dominguez, David"]
[Black "Popilski, Gil"]
[WhiteFideId "2220857"]
[BlackFideId "2809060"]
[WhiteElo "1999"]
[BlackElo "2537"]
[Result "0-1"]
[Round "04"]
[TimeControl "180+2"]
[Date "2023.05.02"]
[WhiteClock "0:00:07"]
[BlackClock "0:00:33"]

1. e4 {[%clk 0:02:57]}  e5 {[%clk 0:02:59]} 2. Bc4 {[%clk 0:02:56]}  Nf6 {[%clk 0:02:55]} 3. Nc3 {[%clk 0:02:55]}  Bb4 {[%clk 0:02:55]} 4. Nf3 {[%clk 0:02:50]}  O-O {[%clk 0:02:50]} 5. d3 {[%clk 0:02:24]}  Re8 {[%clk 0:02:47]} 6. h3 {[%clk 0:02:19]}  c6 {[%clk 0:02:47]} 7. Bg5 {[%clk 0:02:17]}  h6 {[%clk 0:02:45]} 8. Bh4 {[%clk 0:02:17]}  d5 {[%clk 0:02:37]} 9. exd5 {[%clk 0:02:09]}  cxd5 {[%clk 0:02:37]} 10. Bb5 {[%clk 0:02:04]}  Nc6 {[%clk 0:02:00]} 11. Bxf6 {[%clk 0:01:51]}  Qxf6 {[%clk 0:01:57]} 12. O-O {[%clk 0:01:40]}  Bxc3 {[%clk 0:01:49]} 13. bxc3 {[%clk 0:01:39]}  e4 {[%clk 0:01:47]} 14. Nd4 {[%clk 0:01:30]}  Nxd4 {[%clk 0:01:40]} 15. cxd4 {[%clk 0:01:29]}  Re7 {[%clk 0:01:37]} 16. dxe4 {[%clk 0:01:26]}  dxe4 {[%clk 0:01:34]} 17. Qd2 {[%clk 0:01:17]}  Bf5 {[%clk 0:01:19]} 18. Rae1 {[%clk 0:01:14]}  Rd8 {[%clk 0:01:16]} 19. c3 {[%clk 0:01:10]}  Rd6 {[%clk 0:01:15]} 20. Ba4 {[%clk 0:01:01]}  Qh4 {[%clk 0:01:12]} 21. Re3 {[%clk 0:00:57]}  Rg6 {[%clk 0:01:06]} 22. Kh2 {[%clk 0:00:36]}  h5 {[%clk 0:00:48]} 23. f3 {[%clk 0:00:25]}  Bxh3 {[%clk 0:00:38]} 24. Rg1 {[%clk 0:00:07]}  Bc8# {[%clk 0:00:33]} 0-1


[Site "https://www.chess.com"]

[Event "Titled Tuesday Blitz May 2 Early 2023"]
[White "Terry, Renato"]
[Black "Risteski, Emil"]
[WhiteFideId "3803457"]
[BlackFideId "15005267"]
[WhiteElo "2575"]
[BlackElo "2251"]
[Result "1-0"]
[Round "04"]
[TimeControl "180+2"]
[Date "2023.05.02"]
[WhiteClock "0:00:05"]
[BlackClock "0:00:04"]

1. e4 {[%clk 0:03:00]}  d6 {[%clk 0:02:59]} 2. d4 {[%clk 0:03:00]}  Nf6 {[%clk 0:02:57]} 3. Nc3 {[%clk 0:03:01]}  e5 {[%clk 0:02:58]} 4. Nf3 {[%clk 0:02:59]}  Nbd7 {[%clk 0:02:48]} 5. Bc4 {[%clk 0:02:59]}  Be7 {[%clk 0:02:49]} 6. O-O {[%clk 0:02:58]}  c6 {[%clk 0:02:48]} 7. a4 {[%clk 0:02:58]}  h6 {[%clk 0:02:48]} 8. Re1 {[%clk 0:02:58]}  Qc7 {[%clk 0:02:48]} 9. Nh4 {[%clk 0:02:57]}  Nf8 {[%clk 0:02:46]} 10. d5 {[%clk 0:02:45]}  Bd7 {[%clk 0:02:30]} 11. Nf5 {[%clk 0:02:41]}  Bxf5 {[%clk 0:02:28]} 12. exf5 {[%clk 0:02:42]}  N8d7 {[%clk 0:02:16]} 13. a5 {[%clk 0:02:41]}  O-O {[%clk 0:02:11]} 14. Qf3 {[%clk 0:02:29]}  Rab8 {[%clk 0:01:52]} 15. Rd1 {[%clk 0:02:22]}  b5 {[%clk 0:01:43]} 16. axb6 {[%clk 0:01:25]}  Nxb6 {[%clk 0:01:40]} 17. Bb3 {[%clk 0:01:25]}  cxd5 {[%clk 0:01:38]} 18. Bxd5 {[%clk 0:01:25]}  Nbxd5 {[%clk 0:01:38]} 19. Nxd5 {[%clk 0:01:26]}  Nxd5 {[%clk 0:01:38]} 20. Qxd5 {[%clk 0:01:27]}  Qxc2 {[%clk 0:01:38]} 21. Rxa7 {[%clk 0:01:26]}  Bg5 {[%clk 0:01:34]} 22. Bxg5 {[%clk 0:01:05]}  hxg5 {[%clk 0:01:34]} 23. Qxd6 {[%clk 0:01:04]}  Qxf5 {[%clk 0:01:09]} 24. h3 {[%clk 0:00:59]}  g6 {[%clk 0:00:58]} 25. Qd2 {[%clk 0:00:52]}  g4 {[%clk 0:00:48]} 26. hxg4 {[%clk 0:00:51]}  Qxg4 {[%clk 0:00:48]} 27. Rd7 {[%clk 0:00:49]}  Rb6 {[%clk 0:00:29]} 28. Qh6 {[%clk 0:00:33]}  Rbb8 {[%clk 0:00:23]} 29. R7d3 {[%clk 0:00:25]}  Qh5 {[%clk 0:00:19]} 30. Qd2 {[%clk 0:00:24]}  Qf5 {[%clk 0:00:16]} 31. b4 {[%clk 0:00:24]}  Qf4 {[%clk 0:00:16]} 32. Qxf4 {[%clk 0:00:22]}  exf4 {[%clk 0:00:17]} 33. Rd4 {[%clk 0:00:21]}  g5 {[%clk 0:00:17]} 34. Rc1 {[%clk 0:00:20]}  Rb5 {[%clk 0:00:17]} 35. Rc5 {[%clk 0:00:20]}  Rxc5 {[%clk 0:00:16]} 36. bxc5 {[%clk 0:00:21]}  Rc8 {[%clk 0:00:16]} 37. Rc4 {[%clk 0:00:21]}  f6 {[%clk 0:00:16]} 38. Kh2 {[%clk 0:00:16]}  Kf7 {[%clk 0:00:16]} 39. Kh3 {[%clk 0:00:17]}  f5 {[%clk 0:00:12]} 40. Kh2 {[%clk 0:00:12]}  Ke6 {[%clk 0:00:13]} 41. Rc1 {[%clk 0:00:12]}  Rc6 {[%clk 0:00:11]} 42. Re1+ {[%clk 0:00:05]}  Kd5 {[%clk 0:00:10]} 43. Re8 {[%clk 0:00:05]}  Rxc5 {[%clk 0:00:09]} 44. Rg8 {[%clk 0:00:05]}  g4 {[%clk 0:00:10]} 45. Re8 {[%clk 0:00:05]}  Kd6 {[%clk 0:00:10]} 46. f3 {[%clk 0:00:03]}  g3+ {[%clk 0:00:09]} 47. Kh3 {[%clk 0:00:03]}  Rc2 {[%clk 0:00:07]} 48. Re1 {[%clk 0:00:02]}  Rf2 {[%clk 0:00:05]} 49. Re8 {[%clk 0:00:02]}  Rf1 {[%clk 0:00:04]} 50. Kh4 {[%clk 0:00:01]}  Rg1 {[%clk 0:00:05]} 51. Kg5 {[%clk 0:00:02]}  Rxg2 {[%clk 0:00:05]} 52. Kxf4 {[%clk 0:00:02]}  Rf2 {[%clk 0:00:06]} 53. Kxg3 {[%clk 0:00:02]}  Rf1 {[%clk 0:00:06]} 54. Kf4 {[%clk 0:00:03]}  Kd7 {[%clk 0:00:06]} 55. Re3 {[%clk 0:00:03]}  Kd6 {[%clk 0:00:06]} 56. Kxf5 {[%clk 0:00:03]}  Kd7 {[%clk 0:00:04]} 57. f4 {[%clk 0:00:04]}  Kd8 {[%clk 0:00:03]} 58. Kg5 {[%clk 0:00:04]}  Rg1+ {[%clk 0:00:04]} 59. Kf6 {[%clk 0:00:04]}  Rh1 {[%clk 0:00:03]} 60. f5 {[%clk 0:00:05]}  Rh6+ {[%clk 0:00:04]} 61. Kg7 {[%clk 0:00:05]}  Rb6 {[%clk 0:00:04]} 62. f6 {[%clk 0:00:05]} 1-0


[Site "https://www.chess.com"]

[Event "Titled Tuesday Blitz May 2 Early 2023"]
[White "Bilan, Danila"]
[Black "Postny, Evgeny"]
[WhiteFideId "24161918"]
[BlackFideId "2804344"]
[WhiteElo "2182"]
[BlackElo "2504"]
[Result "0-1"]
[Round "04"]
[TimeControl "180+2"]
[Date "2023.05.02"]
[WhiteClock "0:00:01"]
[BlackClock "0:00:10"]

1. d4 {[%clk 0:03:00]}  Nf6 {[%clk 0:02:54]} 2. Nf3 {[%clk 0:03:00]}  c5 {[%clk 0:02:54]} 3. e3 {[%clk 0:02:59]}  g6 {[%clk 0:02:54]} 4. Be2 {[%clk 0:02:57]}  Bg7 {[%clk 0:02:54]} 5. O-O {[%clk 0:02:58]}  cxd4 {[%clk 0:02:53]} 6. exd4 {[%clk 0:02:57]}  O-O {[%clk 0:02:53]} 7. Bg5 {[%clk 0:02:55]}  d5 {[%clk 0:02:53]} 8. c3 {[%clk 0:02:55]}  Ne4 {[%clk 0:02:52]} 9. Bh4 {[%clk 0:02:54]}  Nd7 {[%clk 0:02:48]} 10. Nbd2 {[%clk 0:02:53]}  Nd6 {[%clk 0:02:45]} 11. Bd3 {[%clk 0:02:41]}  Nf6 {[%clk 0:02:45]} 12. Re1 {[%clk 0:02:33]}  Bf5 {[%clk 0:02:44]} 13. Bxf5 {[%clk 0:02:21]}  Nxf5 {[%clk 0:02:45]} 14. Bg5 {[%clk 0:02:18]}  Qc7 {[%clk 0:02:41]} 15. Ne5 {[%clk 0:02:02]}  Rae8 {[%clk 0:02:39]} 16. Qa4 {[%clk 0:01:56]}  a6 {[%clk 0:02:37]} 17. Qb3 {[%clk 0:01:18]}  e6 {[%clk 0:02:33]} 18. a4 {[%clk 0:01:11]}  h6 {[%clk 0:02:31]} 19. Bf4 {[%clk 0:01:04]}  Nh5 {[%clk 0:02:31]} 20. Bg3 {[%clk 0:00:58]}  Nhxg3 {[%clk 0:02:30]} 21. hxg3 {[%clk 0:00:59]}  Kh7 {[%clk 0:02:28]} 22. a5 {[%clk 0:00:58]}  f6 {[%clk 0:02:25]} 23. Nd3 {[%clk 0:00:53]}  Rf7 {[%clk 0:02:22]} 24. Qb6 {[%clk 0:00:39]}  Qc8 {[%clk 0:02:13]} 25. Nf4 {[%clk 0:00:20]}  Rfe7 {[%clk 0:02:11]} 26. Re2 {[%clk 0:00:19]}  g5 {[%clk 0:02:03]} 27. Nh5 {[%clk 0:00:19]}  Bh8 {[%clk 0:01:54]} 28. g4 {[%clk 0:00:16]}  Nh4 {[%clk 0:01:53]} 29. Rae1 {[%clk 0:00:14]}  Ng6 {[%clk 0:01:45]} 30. g3 {[%clk 0:00:13]}  Nf8 {[%clk 0:01:38]} 31. Nb3 {[%clk 0:00:13]}  Kg6 {[%clk 0:01:25]} 32. Nc5 {[%clk 0:00:12]}  Kf7 {[%clk 0:01:25]} 33. Qb3 {[%clk 0:00:07]}  Qc6 {[%clk 0:01:21]} 34. Qc2 {[%clk 0:00:07]}  e5 {[%clk 0:00:57]} 35. b4 {[%clk 0:00:04]}  Ng6 {[%clk 0:00:35]} 36. Qf5 {[%clk 0:00:03]}  Qc8 {[%clk 0:00:33]} 37. Qxc8 {[%clk 0:00:03]}  Rxc8 {[%clk 0:00:34]} 38. f3 {[%clk 0:00:02]}  Bg7 {[%clk 0:00:26]} 39. Kg2 {[%clk 0:00:02]}  Bf8 {[%clk 0:00:26]} 40. f4 {[%clk 0:00:01]}  gxf4 {[%clk 0:00:18]} 41. gxf4 {[%clk 0:00:02]}  exf4 {[%clk 0:00:18]} 42. Rxe7+ {[%clk 0:00:02]}  Bxe7 {[%clk 0:00:19]} 43. Rf1 {[%clk 0:00:01]}  Bxc5 {[%clk 0:00:18]} 44. dxc5 {[%clk 0:00:01]}  f3+ {[%clk 0:00:11]} 45. Rxf3 {[%clk 0:00:01]}  Nh4+ {[%clk 0:00:10]} 0-1


[Site "https://www.chess.com"]

[Event "Titled Tuesday Blitz May 2 Early 2023"]
[White "Saya, Ethan"]
[Black "Dronavalli, Harika"]
[WhiteFideId "26095181"]
[BlackFideId "5015197"]
[WhiteElo "2189"]
[BlackElo "2432"]
[Result "0-1"]
[Round "04"]
[TimeControl "180+2"]
[Date "2023.05.02"]
[WhiteClock "0:00:04"]
[BlackClock "0:00:38"]

1. e4 {[%clk 0:03:00]}  Nc6 {[%clk 0:02:59]} 2. Nf3 {[%clk 0:03:00]}  d6 {[%clk 0:02:56]} 3. d4 {[%clk 0:02:59]}  g6 {[%clk 0:02:56]} 4. d5 {[%clk 0:02:42]}  Ne5 {[%clk 0:02:55]} 5. Nxe5 {[%clk 0:02:42]}  dxe5 {[%clk 0:02:56]} 6. Nc3 {[%clk 0:02:40]}  Bg7 {[%clk 0:02:56]} 7. Be3 {[%clk 0:02:35]}  Nf6 {[%clk 0:02:55]} 8. f3 {[%clk 0:02:33]}  O-O {[%clk 0:02:51]} 9. Qd2 {[%clk 0:02:31]}  e6 {[%clk 0:02:51]} 10. Bc4 {[%clk 0:02:27]}  exd5 {[%clk 0:02:49]} 11. Nxd5 {[%clk 0:02:27]}  Nxd5 {[%clk 0:02:49]} 12. Bxd5 {[%clk 0:02:21]}  c6 {[%clk 0:02:47]} 13. Bb3 {[%clk 0:02:21]}  Qe7 {[%clk 0:02:31]} 14. O-O {[%clk 0:02:15]}  Be6 {[%clk 0:02:28]} 15. Qc3 {[%clk 0:02:02]}  Rfd8 {[%clk 0:02:27]} 16. Rad1 {[%clk 0:01:58]}  Bxb3 {[%clk 0:02:19]} 17. axb3 {[%clk 0:01:57]}  Qc7 {[%clk 0:02:06]} 18. b4 {[%clk 0:01:52]}  b6 {[%clk 0:02:06]} 19. b5 {[%clk 0:01:41]}  c5 {[%clk 0:01:58]} 20. Qc4 {[%clk 0:01:41]}  Qb7 {[%clk 0:01:43]} 21. c3 {[%clk 0:01:18]}  h6 {[%clk 0:01:43]} 22. Kf2 {[%clk 0:00:53]}  Kh7 {[%clk 0:01:42]} 23. Ke2 {[%clk 0:00:53]}  f5 {[%clk 0:01:34]} 24. Rxd8 {[%clk 0:00:51]}  Rxd8 {[%clk 0:01:33]} 25. Rd1 {[%clk 0:00:51]}  Rxd1 {[%clk 0:01:29]} 26. Kxd1 {[%clk 0:00:52]}  Qd7+ {[%clk 0:01:29]} 27. Ke2 {[%clk 0:00:48]}  f4 {[%clk 0:01:10]} 28. Bf2 {[%clk 0:00:44]}  Bf6 {[%clk 0:01:06]} 29. b4 {[%clk 0:00:30]}  cxb4 {[%clk 0:01:06]} 30. Qxb4 {[%clk 0:00:30]}  Kg7 {[%clk 0:00:53]} 31. c4 {[%clk 0:00:29]}  Be7 {[%clk 0:00:53]} 32. Qc3 {[%clk 0:00:28]}  Qd6 {[%clk 0:00:49]} 33. Qd3 {[%clk 0:00:19]}  Kf6 {[%clk 0:00:49]} 34. Qxd6+ {[%clk 0:00:17]}  Bxd6 {[%clk 0:00:49]} 35. Kd3 {[%clk 0:00:13]}  Ke6 {[%clk 0:00:46]} 36. g3 {[%clk 0:00:08]}  fxg3 {[%clk 0:00:40]} 37. hxg3 {[%clk 0:00:09]}  h5 {[%clk 0:00:39]} 38. Be3 {[%clk 0:00:10]}  Be7 {[%clk 0:00:39]} 39. f4 {[%clk 0:00:05]}  exf4 {[%clk 0:00:33]} 40. Bxf4 {[%clk 0:00:06]}  Bd6 {[%clk 0:00:33]} 41. Bxd6 {[%clk 0:00:03]}  Kxd6 {[%clk 0:00:34]} 42. Kd4 {[%clk 0:00:03]}  g5 {[%clk 0:00:34]} 43. e5+ {[%clk 0:00:03]}  Ke6 {[%clk 0:00:34]} 44. Ke4 {[%clk 0:00:03]}  h4 {[%clk 0:00:35]} 45. gxh4 {[%clk 0:00:03]}  gxh4 {[%clk 0:00:36]} 46. Kf4 {[%clk 0:00:03]}  h3 {[%clk 0:00:36]} 47. Kg3 {[%clk 0:00:03]}  Kxe5 {[%clk 0:00:37]} 48. c5 {[%clk 0:00:04]}  bxc5 {[%clk 0:00:37]} 49. Kxh3 {[%clk 0:00:04]}  Kd5 {[%clk 0:00:37]} 50. b6 {[%clk 0:00:04]}  axb6 {[%clk 0:00:38]} 0-1


[Site "https://www.chess.com"]

[Event "Titled Tuesday Blitz May 2 Early 2023"]
[White "Seletsky, Grigory"]
[Black "Martinez Reyes, Pedro Ramon"]
[WhiteFideId "14112191"]
[BlackFideId "3901807"]
[WhiteElo "2490"]
[BlackElo "2340"]
[Result "0-1"]
[Round "04"]
[TimeControl "180+2"]
[Date "2023.05.02"]
[WhiteClock "0:01:20"]
[BlackClock "0:01:38"]

1. e4 {[%clk 0:02:57]}  Nc6 {[%clk 0:02:55]} 2. Nc3 {[%clk 0:02:56]}  g6 {[%clk 0:02:52]} 3. d4 {[%clk 0:02:55]}  d6 {[%clk 0:02:52]} 4. Be3 {[%clk 0:02:54]}  Bg7 {[%clk 0:02:52]} 5. Nge2 {[%clk 0:02:53]}  Nf6 {[%clk 0:02:52]} 6. f3 {[%clk 0:02:53]}  a6 {[%clk 0:02:43]} 7. Qd2 {[%clk 0:02:52]}  b5 {[%clk 0:02:41]} 8. Bh6 {[%clk 0:02:51]}  O-O {[%clk 0:02:27]} 9. Bxg7 {[%clk 0:02:48]}  Kxg7 {[%clk 0:02:28]} 10. h4 {[%clk 0:02:43]}  h5 {[%clk 0:02:28]} 11. Ng3 {[%clk 0:02:25]}  e5 {[%clk 0:02:24]} 12. Nce2 {[%clk 0:02:22]}  Re8 {[%clk 0:02:17]} 13. d5 {[%clk 0:02:21]}  Ne7 {[%clk 0:02:15]} 14. O-O-O {[%clk 0:02:16]}  Bd7 {[%clk 0:02:07]} 15. Kb1 {[%clk 0:02:14]}  Qb8 {[%clk 0:02:07]} 16. Nc1 {[%clk 0:01:57]}  Qb6 {[%clk 0:02:06]} 17. Rg1 {[%clk 0:01:32]}  Qxg1 {[%clk 0:02:05]} 18. Bd3 {[%clk 0:01:33]}  Qb6 {[%clk 0:02:00]} 19. Qg5 {[%clk 0:01:31]}  c6 {[%clk 0:01:52]} 20. f4 {[%clk 0:01:30]}  Qe3 {[%clk 0:01:47]} 21. Nce2 {[%clk 0:01:28]}  cxd5 {[%clk 0:01:39]} 22. exd5 {[%clk 0:01:20]}  Bg4 {[%clk 0:01:38]} 0-1


[Site "https://www.chess.com"]

[Event "Titled Tuesday Blitz May 2 Early 2023"]
[White "Melikhov, Evgeny V."]
[Black "Pham, Khoi"]
[WhiteFideId "4122046"]
[BlackFideId "1054988"]
[WhiteElo "2158"]
[BlackElo "2355"]
[Result "0-1"]
[Round "04"]
[TimeControl "180+2"]
[Date "2023.05.02"]
[WhiteClock "0:00:10"]
[BlackClock "0:00:29"]

1. d4 {[%clk 0:03:00]}  f5 {[%clk 0:02:59]} 2. e4 {[%clk 0:03:00]}  fxe4 {[%clk 0:02:59]} 3. Nc3 {[%clk 0:03:00]}  Nf6 {[%clk 0:02:56]} 4. Bg5 {[%clk 0:03:00]}  g6 {[%clk 0:02:56]} 5. Bc4 {[%clk 0:02:53]}  Bg7 {[%clk 0:02:47]} 6. h4 {[%clk 0:02:42]}  d5 {[%clk 0:02:36]} 7. Bxf6 {[%clk 0:02:35]}  exf6 {[%clk 0:02:36]} 8. Nxd5 {[%clk 0:02:31]}  Nc6 {[%clk 0:02:22]} 9. Ne2 {[%clk 0:02:21]}  Na5 {[%clk 0:02:12]} 10. Ne3 {[%clk 0:02:10]}  Nxc4 {[%clk 0:02:11]} 11. Nxc4 {[%clk 0:02:10]}  Be6 {[%clk 0:02:11]} 12. Ne3 {[%clk 0:02:07]}  f5 {[%clk 0:02:06]} 13. c4 {[%clk 0:01:53]}  Qd6 {[%clk 0:02:04]} 14. Qa4+ {[%clk 0:01:51]}  Bd7 {[%clk 0:02:01]} 15. Qb3 {[%clk 0:01:44]}  O-O-O {[%clk 0:01:59]} 16. c5 {[%clk 0:01:25]}  Qa6 {[%clk 0:01:56]} 17. a4 {[%clk 0:01:14]}  f4 {[%clk 0:01:44]} 18. Nd5 {[%clk 0:00:58]}  Be6 {[%clk 0:01:24]} 19. Nexf4 {[%clk 0:00:44]}  Bxd5 {[%clk 0:01:14]} 20. Nxd5 {[%clk 0:00:43]}  Kb8 {[%clk 0:01:11]} 21. O-O-O {[%clk 0:00:39]}  Qe6 {[%clk 0:01:03]} 22. c6 {[%clk 0:00:35]}  b6 {[%clk 0:00:59]} 23. Kb1 {[%clk 0:00:16]}  Qxd5 {[%clk 0:00:58]} 24. Qc2 {[%clk 0:00:16]}  Rd6 {[%clk 0:00:57]} 25. Rc1 {[%clk 0:00:15]}  Qxd4 {[%clk 0:00:57]} 26. Rhd1 {[%clk 0:00:14]}  Qe5 {[%clk 0:00:50]} 27. Rxd6 {[%clk 0:00:13]}  Qxd6 {[%clk 0:00:51]} 28. Qxe4 {[%clk 0:00:13]}  Qd4 {[%clk 0:00:48]} 29. Qxd4 {[%clk 0:00:11]}  Bxd4 {[%clk 0:00:49]} 30. Rd1 {[%clk 0:00:11]}  Bxf2 {[%clk 0:00:45]} 31. h5 {[%clk 0:00:11]}  gxh5 {[%clk 0:00:45]} 32. Rd7 {[%clk 0:00:11]}  h4 {[%clk 0:00:42]} 33. b4 {[%clk 0:00:11]}  a5 {[%clk 0:00:41]} 34. b5 {[%clk 0:00:11]}  Kc8 {[%clk 0:00:40]} 35. Kc2 {[%clk 0:00:11]}  Bc5 {[%clk 0:00:33]} 36. Kd3 {[%clk 0:00:10]}  Bd6 {[%clk 0:00:32]} 37. Ke4 {[%clk 0:00:10]}  Re8+ {[%clk 0:00:32]} 38. Kf5 {[%clk 0:00:10]}  Re7 {[%clk 0:00:32]} 39. Rxe7 {[%clk 0:00:09]}  Bxe7 {[%clk 0:00:33]} 40. Ke6 {[%clk 0:00:09]}  Kd8 {[%clk 0:00:33]} 41. Kf7 {[%clk 0:00:09]}  h6 {[%clk 0:00:32]} 42. Kg6 {[%clk 0:00:09]}  Bg5 {[%clk 0:00:32]} 43. Kf7 {[%clk 0:00:10]}  Bd2 {[%clk 0:00:29]} 44. Kf8 {[%clk 0:00:10]}  Bb4+ {[%clk 0:00:28]} 45. Kf7 {[%clk 0:00:10]}  Bc5 {[%clk 0:00:28]} 46. Kg6 {[%clk 0:00:10]}  Ke7 {[%clk 0:00:27]} 47. Kxh6 {[%clk 0:00:10]}  Kd6 {[%clk 0:00:27]} 48. Kg5 {[%clk 0:00:10]}  Bf2 {[%clk 0:00:27]} 49. Kg4 {[%clk 0:00:10]}  Kc5 {[%clk 0:00:28]} 50. Kf5 {[%clk 0:00:10]}  Bg3 {[%clk 0:00:29]} 51. Ke6 {[%clk 0:00:10]}  Kb4 {[%clk 0:00:29]} 0-1


[Site "https://www.chess.com"]

[Event "Titled Tuesday Blitz May 2 Early 2023"]
[White "Myers, Dominique"]
[Black "Demin, Vladimir"]
[WhiteFideId "2041715"]
[BlackFideId "4167457"]
[WhiteElo "1934"]
[BlackElo "2430"]
[Result "1/2-1/2"]
[Round "04"]
[TimeControl "180+2"]
[Date "2023.05.02"]
[WhiteClock "0:00:51"]
[BlackClock "0:00:05"]

1. e4 {[%clk 0:03:00]}  e5 {[%clk 0:02:59]} 2. Nf3 {[%clk 0:03:00]}  Nc6 {[%clk 0:02:59]} 3. d4 {[%clk 0:02:59]}  exd4 {[%clk 0:02:58]} 4. Bc4 {[%clk 0:02:58]}  Bc5 {[%clk 0:02:57]} 5. c3 {[%clk 0:02:55]}  dxc3 {[%clk 0:02:46]} 6. Bxf7+ {[%clk 0:02:51]}  Kxf7 {[%clk 0:02:45]} 7. Qd5+ {[%clk 0:02:52]}  Kf8 {[%clk 0:02:34]} 8. Qxc5+ {[%clk 0:02:52]}  d6 {[%clk 0:02:19]} 9. Qxc3 {[%clk 0:02:52]}  Qf6 {[%clk 0:02:18]} 10. O-O {[%clk 0:02:51]}  Bg4 {[%clk 0:02:19]} 11. Nfd2 {[%clk 0:02:44]}  Re8 {[%clk 0:02:14]} 12. f3 {[%clk 0:02:45]}  Bd7 {[%clk 0:02:11]} 13. Nc4 {[%clk 0:02:45]}  Nd4 {[%clk 0:02:09]} 14. Rf2 {[%clk 0:02:42]}  Ne7 {[%clk 0:02:01]} 15. Be3 {[%clk 0:02:41]}  Nec6 {[%clk 0:01:57]} 16. Nbd2 {[%clk 0:02:34]}  b5 {[%clk 0:01:50]} 17. Na5 {[%clk 0:02:30]}  b4 {[%clk 0:01:46]} 18. Qd3 {[%clk 0:02:22]}  Kf7 {[%clk 0:01:22]} 19. Nxc6 {[%clk 0:02:21]}  Nxc6 {[%clk 0:01:23]} 20. Rc1 {[%clk 0:02:17]}  Rhf8 {[%clk 0:01:22]} 21. Rxc6 {[%clk 0:02:15]}  Bxc6 {[%clk 0:01:20]} 22. Qc4+ {[%clk 0:02:16]}  d5 {[%clk 0:01:18]} 23. exd5 {[%clk 0:02:16]}  Rxe3 {[%clk 0:01:10]} 24. Ne4 {[%clk 0:02:06]}  Re1+ {[%clk 0:00:57]} 25. Rf1 {[%clk 0:02:07]}  Rxf1+ {[%clk 0:00:57]} 26. Kxf1 {[%clk 0:02:08]}  Qe5 {[%clk 0:00:42]} 27. d6+ {[%clk 0:02:02]}  Bd5 {[%clk 0:00:38]} 28. Qxc7+ {[%clk 0:01:58]}  Kg8 {[%clk 0:00:37]} 29. Nf2 {[%clk 0:01:42]}  Qxb2 {[%clk 0:00:28]} 30. d7 {[%clk 0:01:29]}  Qa1+ {[%clk 0:00:28]} 31. Ke2 {[%clk 0:01:29]}  Qxa2+ {[%clk 0:00:29]} 32. Ke3 {[%clk 0:01:28]}  Qb3+ {[%clk 0:00:28]} 33. Nd3 {[%clk 0:01:28]}  Be6 {[%clk 0:00:08]} 34. d8=Q {[%clk 0:01:27]}  Rxd8 {[%clk 0:00:08]} 35. Qxd8+ {[%clk 0:01:28]}  Kf7 {[%clk 0:00:09]} 36. Qc7+ {[%clk 0:01:21]}  Kg6 {[%clk 0:00:09]} 37. Qxa7 {[%clk 0:01:21]}  Qc3 {[%clk 0:00:06]} 38. Qb6 {[%clk 0:01:20]}  Kf7 {[%clk 0:00:06]} 39. Ke4 {[%clk 0:01:16]}  Qc4+ {[%clk 0:00:05]} 40. Ke3 {[%clk 0:01:16]}  Qc3 {[%clk 0:00:04]} 41. Qxb4 {[%clk 0:01:16]}  Qxb4 {[%clk 0:00:03]} 42. Nxb4 {[%clk 0:01:17]}  Kf6 {[%clk 0:00:04]} 43. Nd3 {[%clk 0:01:17]}  h5 {[%clk 0:00:04]} 44. Kf4 {[%clk 0:01:17]}  g5+ {[%clk 0:00:04]} 45. Ke4 {[%clk 0:01:17]}  Bf5+ {[%clk 0:00:04]} 46. Ke3 {[%clk 0:01:18]}  h4 {[%clk 0:00:05]} 47. Nf2 {[%clk 0:01:16]}  Be6 {[%clk 0:00:04]} 48. Ke4 {[%clk 0:01:15]}  Bf5+ {[%clk 0:00:04]} 49. Kd5 {[%clk 0:01:15]}  Be6+ {[%clk 0:00:04]} 50. Kd6 {[%clk 0:01:15]}  Bc8 {[%clk 0:00:05]} 51. Ng4+ {[%clk 0:01:11]}  Kf5 {[%clk 0:00:05]} 52. g3 {[%clk 0:01:09]}  hxg3 {[%clk 0:00:05]} 53. hxg3 {[%clk 0:01:10]}  Bb7 {[%clk 0:00:05]} 54. Ne5 {[%clk 0:01:09]}  Ba8 {[%clk 0:00:04]} 55. Nc6 {[%clk 0:01:02]}  Bb7 {[%clk 0:00:04]} 56. Ne7+ {[%clk 0:01:01]}  Kf6 {[%clk 0:00:04]} 57. Nd5+ {[%clk 0:01:02]}  Kf5 {[%clk 0:00:04]} 58. Ne3+ {[%clk 0:01:01]}  Kf6 {[%clk 0:00:04]} 59. f4 {[%clk 0:01:02]}  gxf4 {[%clk 0:00:04]} 60. gxf4 {[%clk 0:01:02]}  Be4 {[%clk 0:00:04]} 61. Kc5 {[%clk 0:01:02]}  Bh7 {[%clk 0:00:05]} 62. Kd4 {[%clk 0:01:02]}  Bg8 {[%clk 0:00:05]} 63. Ke4 {[%clk 0:01:02]}  Bh7+ {[%clk 0:00:06]} 64. Kf3 {[%clk 0:01:03]}  Bb1 {[%clk 0:00:06]} 65. Kg4 {[%clk 0:01:03]}  Ba2 {[%clk 0:00:06]} 66. f5 {[%clk 0:01:01]}  Bb1 {[%clk 0:00:06]} 67. Nd5+ {[%clk 0:01:01]}  Ke5 {[%clk 0:00:05]} 68. f6 {[%clk 0:01:02]}  Bg6 {[%clk 0:00:06]} 69. Kg5 {[%clk 0:01:01]}  Bf7 {[%clk 0:00:06]} 70. Nf4 {[%clk 0:01:01]}  Ba2 {[%clk 0:00:05]} 71. Nh5 {[%clk 0:01:00]}  Ke6 {[%clk 0:00:05]} 72. Kg6 {[%clk 0:01:00]}  Kd7 {[%clk 0:00:05]} 73. Kg7 {[%clk 0:01:00]}  Bb3 {[%clk 0:00:05]} 74. Nf4 {[%clk 0:01:00]}  Ba2 {[%clk 0:00:05]} 75. Ng6 {[%clk 0:01:00]}  Bb3 {[%clk 0:00:05]} 76. Kf8 {[%clk 0:01:01]}  Ba2 {[%clk 0:00:04]} 77. Nf4 {[%clk 0:00:59]}  Bb3 {[%clk 0:00:04]} 78. Kg7 {[%clk 0:00:59]}  Ba2 {[%clk 0:00:04]} 79. Kg6 {[%clk 0:01:00]}  Bb3 {[%clk 0:00:04]} 80. Kf5 {[%clk 0:01:01]}  Ba2 {[%clk 0:00:04]} 81. Ke5 {[%clk 0:01:02]}  Ke8 {[%clk 0:00:03]} 82. Ne6 {[%clk 0:00:58]}  Kf7 {[%clk 0:00:02]} 83. Ng5+ {[%clk 0:00:58]}  Kg6 {[%clk 0:00:03]} 84. Ne4 {[%clk 0:00:56]}  Kf7 {[%clk 0:00:03]} 85. Nd6+ {[%clk 0:00:57]}  Kg6 {[%clk 0:00:02]} 86. Nc8 {[%clk 0:00:55]}  Kf7 {[%clk 0:00:02]} 87. Ne7 {[%clk 0:00:56]}  Bb3 {[%clk 0:00:02]} 88. Kf5 {[%clk 0:00:56]}  Bc2+ {[%clk 0:00:01]} 89. Kg5 {[%clk 0:00:56]}  Bb3 {[%clk 0:00:01]} 90. Nc8 {[%clk 0:00:56]}  Ba2 {[%clk 0:00:01]} 91. Nd6+ {[%clk 0:00:57]}  Kf8 {[%clk 0:00:01]} 92. Kg6 {[%clk 0:00:57]}  Bb1+ {[%clk 0:00:02]} 93. Kg5 {[%clk 0:00:56]}  Ba2 {[%clk 0:00:01]} 94. Kf5 {[%clk 0:00:56]}  Bb1+ {[%clk 0:00:02]} 95. Ke6 {[%clk 0:00:56]}  Ba2+ {[%clk 0:00:03]} 96. Kd7 {[%clk 0:00:57]}  Bb1 {[%clk 0:00:04]} 97. Nc4 {[%clk 0:00:53]}  Ba2 {[%clk 0:00:04]} 98. Ne5 {[%clk 0:00:53]}  Bb3 {[%clk 0:00:04]} 99. Kd6 {[%clk 0:00:50]}  Ba2 {[%clk 0:00:04]} 100. Kc5 {[%clk 0:00:49]}  Bb3 {[%clk 0:00:03]} 101. Kd4 {[%clk 0:00:50]}  Ba2 {[%clk 0:00:04]} 102. Ke4 {[%clk 0:00:51]}  Bb3 {[%clk 0:00:04]} 103. Kf5 {[%clk 0:00:52]}  Ba2 {[%clk 0:00:04]} 104. Kg6 {[%clk 0:00:52]}  Bb1+ {[%clk 0:00:04]} 105. Kh6 {[%clk 0:00:51]}  Ba2 {[%clk 0:00:05]} 106. Kg5 {[%clk 0:00:52]}  Bb1 {[%clk 0:00:05]} 107. Nd7+ {[%clk 0:00:52]}  Kf7 {[%clk 0:00:05]} 108. Nc5 {[%clk 0:00:52]}  Ba2 {[%clk 0:00:05]} 109. Nd3 {[%clk 0:00:52]}  Bb3 {[%clk 0:00:03]} 110. Kf5 {[%clk 0:00:52]}  Bc2 {[%clk 0:00:03]} 111. Ke4 {[%clk 0:00:50]}  Bxd3+ {[%clk 0:00:04]} 112. Kxd3 {[%clk 0:00:51]}  Kxf6 {[%clk 0:00:05]} 1/2-1/2


[Site "https://www.chess.com"]